[Event "Early-Titled-Tuesday-Blitz-May-07-2024"]
[Site "Chess.com"]
[Date "2024.05.07"]
[Round "9"]
[White "ChristopherYoo"]
[Black "Nemegejas"]
[Result "1-0"]
[WhiteElo "2998"]
[BlackElo "2819"]
[TimeControl "180+1"]
[EndTime "9:52:55 PDT"]
[Termination "ChristopherYoo won on time"]

1. e4 {[%clk 0:03:00.9]} 1... c6 {[%clk 0:03:00.1]} 2. Nf3 {[%clk 0:02:58.1]}
2... d5 {[%clk 0:03:00.3]} 3. Nc3 {[%clk 0:02:58.8]} 3... Bg4 {[%clk 0:02:59.5]}
4. d4 {[%clk 0:02:59.3]} 4... dxe4 {[%clk 0:02:57.4]} 5. Nxe4 {[%clk 0:02:59]}
5... Nd7 {[%clk 0:02:51.7]} 6. h3 {[%clk 0:02:36.1]} 6... Bh5 {[%clk 0:02:48.3]}
7. Ng3 {[%clk 0:02:29.1]} 7... Bg6 {[%clk 0:02:46.2]} 8. h4 {[%clk 0:02:29.3]}
8... h6 {[%clk 0:02:44.1]} 9. h5 {[%clk 0:02:29.4]} 9... Bh7 {[%clk 0:02:44.4]}
10. Bd3 {[%clk 0:02:30]} 10... Bxd3 {[%clk 0:02:43.2]} 11. Qxd3 {[%clk
0:02:30.9]} 11... Ngf6 {[%clk 0:02:42.2]} 12. Bd2 {[%clk 0:02:29.9]} 12... e6
{[%clk 0:02:42.2]} 13. O-O-O {[%clk 0:02:30.5]} 13... Be7 {[%clk 0:02:36.9]} 14.
Kb1 {[%clk 0:02:30.7]} 14... O-O {[%clk 0:02:30.6]} 15. Ne4 {[%clk 0:02:30.3]}
15... c5 {[%clk 0:02:23.9]} 16. Nxf6+ {[%clk 0:02:10.1]} 16... Nxf6 {[%clk
0:02:19.6]} 17. g4 {[%clk 0:02:09.9]} 17... Qd5 {[%clk 0:01:31.9]} 18. g5 {[%clk
0:01:56]} 18... Ne4 {[%clk 0:01:32.3]} 19. gxh6 {[%clk 0:01:54.7]} 19... Nxf2
{[%clk 0:01:29.1]} 20. Qe3 {[%clk 0:01:21.7]} 20... Nxd1 {[%clk 0:01:22.2]} 21.
Qg1 {[%clk 0:01:21.5]} 21... Bf6 {[%clk 0:01:21.7]} 22. hxg7 {[%clk 0:01:21]}
22... Rfd8 {[%clk 0:01:05.2]} 23. h6 {[%clk 0:01:18.1]} 23... Kh7 {[%clk
0:01:03]} 24. Qxd1 {[%clk 0:01:16.9]} 24... cxd4 {[%clk 0:01:02.8]} 25. Qf1
{[%clk 0:00:50]} 25... d3 {[%clk 0:00:55.3]} 26. c3 {[%clk 0:00:41.8]} 26... Qf5
{[%clk 0:00:48.3]} 27. Rg1 {[%clk 0:00:38]} 27... Rd5 {[%clk 0:00:37.6]} 28. Qf2
{[%clk 0:00:14.7]} 28... b5 {[%clk 0:00:24]} 29. Qxa7 {[%clk 0:00:06.7]} 29...
Rg8 {[%clk 0:00:15.1]} 30. Qxf7 {[%clk 0:00:06.9]} 30... b4 {[%clk 0:00:02.6]}
31. Rf1 {[%clk 0:00:05.6]} 31... Qg6 {[%clk 0:00:01.9]} 32. Qxe6 {[%clk
0:00:03.2]} 32... bxc3 {[%clk 0:00:02.4]} 33. Qxd5 {[%clk 0:00:03.1]} 33... cxd2
{[%clk 0:00:02.5]} 34. Nxd2 {[%clk 0:00:04]} 34... Qxh6 {[%clk 0:00:01.9]} 35.
Qxd3+ {[%clk 0:00:03.9]} 35... Kxg7 {[%clk 0:00:01.4]} 36. Rg1+ {[%clk
0:00:04.4]} 36... Kh8 {[%clk 0:00:01.9]} 37. Rxg8+ {[%clk 0:00:04.1]} 37... Kxg8
{[%clk 0:00:02.8]} 38. Qd5+ {[%clk 0:00:02.9]} 38... Kg7 {[%clk 0:00:03.4]} 39.
Qg2+ {[%clk 0:00:03.1]} 39... Kf8 {[%clk 0:00:03.4]} 40. Ne4 {[%clk 0:00:03.8]}
40... Be5 {[%clk 0:00:02.9]} 41. Qf3+ {[%clk 0:00:04.1]} 41... Ke7 {[%clk
0:00:03.1]} 42. Qa3+ {[%clk 0:00:04.2]} 42... Kf7 {[%clk 0:00:02.3]} 43. Qa7+
{[%clk 0:00:04.2]} 43... Kg8 {[%clk 0:00:01.7]} 44. Qa8+ {[%clk 0:00:04.6]}
44... Kh7 {[%clk 0:00:01.5]} 45. Qb7+ {[%clk 0:00:04.8]} 45... Kg8 {[%clk
0:00:01.1]} 46. Qc8+ {[%clk 0:00:04.6]} 46... Kf7 {[%clk 0:00:01.3]} 47. Qf5+
{[%clk 0:00:04.7]} 47... Bf6 {[%clk 0:00:01]} 48. Qxf6+ {[%clk 0:00:05.2]} 1-0

[Event "Early-Titled-Tuesday-Blitz-May-07-2024"]
[Site "Chess.com"]
[Date "2024.05.07"]
[Round "9"]
[White "Boxerandchessplayer"]
[Black "Flaccidmoves"]
[Result "0-1"]
[WhiteElo "2235"]
[BlackElo "2375"]
[TimeControl "180+1"]
[EndTime "9:52:55 PDT"]
[Termination "Flaccidmoves won by resignation"]

1. Nf3 {[%clk 0:03:00.9]} 1... d5 {[%clk 0:02:59.4]} 2. e3 {[%clk 0:03:00.9]}
2... c5 {[%clk 0:02:58.6]} 3. d4 {[%clk 0:02:56.5]} 3... Nc6 {[%clk 0:02:57.4]}
4. dxc5 {[%clk 0:02:51.5]} 4... e5 {[%clk 0:02:40.8]} 5. Bb5 {[%clk 0:02:27.7]}
5... e4 {[%clk 0:02:29]} 6. Nd4 {[%clk 0:02:20.2]} 6... Bd7 {[%clk 0:02:17.9]}
7. Nc3 {[%clk 0:02:15.3]} 7... Qg5 {[%clk 0:02:07.2]} 8. O-O {[%clk 0:01:32.3]}
8... Bxc5 {[%clk 0:01:59.8]} 9. Nb3 {[%clk 0:01:30.2]} 9... Bd6 {[%clk
0:01:29.6]} 10. Qxd5 {[%clk 0:01:22.7]} 10... Qxd5 {[%clk 0:00:50.3]} 11. Nxd5
{[%clk 0:01:20.2]} 11... Nge7 {[%clk 0:00:41.7]} 12. Nxe7 {[%clk 0:01:18.1]}
12... Kxe7 {[%clk 0:00:42.6]} 13. Bd2 {[%clk 0:01:15.1]} 13... a6 {[%clk
0:00:28.3]} 14. Bxc6 {[%clk 0:00:58.3]} 14... Bxc6 {[%clk 0:00:29.2]} 15. Bc3
{[%clk 0:00:58.8]} 15... f6 {[%clk 0:00:21.7]} 16. Nd4 {[%clk 0:00:58.7]} 16...
Bd7 {[%clk 0:00:20.3]} 17. Rfd1 {[%clk 0:00:57]} 17... b5 {[%clk 0:00:18.9]} 18.
a3 {[%clk 0:00:51.2]} 18... a5 {[%clk 0:00:17.2]} 19. Nb3 {[%clk 0:00:39.6]}
19... b4 {[%clk 0:00:13.5]} 20. axb4 {[%clk 0:00:33.3]} 20... axb4 {[%clk
0:00:14.4]} 21. Bd4 {[%clk 0:00:31.9]} 21... Rhc8 {[%clk 0:00:08.8]} 22. Rxa8
{[%clk 0:00:27.6]} 22... Rxa8 {[%clk 0:00:08.9]} 23. Bc5 {[%clk 0:00:28.1]}
23... Bxc5 {[%clk 0:00:06.7]} 24. Nxc5 {[%clk 0:00:28.2]} 24... Bc6 {[%clk
0:00:06.3]} 25. c3 {[%clk 0:00:23.2]} 25... bxc3 {[%clk 0:00:06]} 26. bxc3
{[%clk 0:00:23.1]} 26... Ra2 {[%clk 0:00:06.6]} 27. h3 {[%clk 0:00:19.4]} 27...
Rc2 {[%clk 0:00:06.5]} 28. Rd4 {[%clk 0:00:16.4]} 28... f5 {[%clk 0:00:05.5]}
29. c4 {[%clk 0:00:14.2]} 29... Rc1+ {[%clk 0:00:04.7]} 30. Kh2 {[%clk
0:00:14.1]} 30... Rc2 {[%clk 0:00:05.2]} 31. Kg3 {[%clk 0:00:14.3]} 31... g5
{[%clk 0:00:05.8]} 32. Na6 {[%clk 0:00:06.5]} 32... h5 {[%clk 0:00:05.1]} 33. f3
{[%clk 0:00:04.1]} 33... h4+ {[%clk 0:00:05.1]} 34. Kh2 {[%clk 0:00:03.4]} 34...
exf3 {[%clk 0:00:05.8]} 35. Nb4 {[%clk 0:00:03.5]} 35... Rxg2+ {[%clk
0:00:05.5]} 36. Kh1 {[%clk 0:00:03.7]} 36... Bb7 {[%clk 0:00:05.8]} 37. Nd5+
{[%clk 0:00:02.8]} 37... Bxd5 {[%clk 0:00:05.1]} 38. Rxd5 {[%clk 0:00:02.4]}
38... Ke6 {[%clk 0:00:04.2]} 39. Ra5 {[%clk 0:00:01.9]} 39... Rc2 {[%clk
0:00:04.3]} 40. Ra6+ {[%clk 0:00:02.3]} 40... Ke5 {[%clk 0:00:04.4]} 41. Ra5+
{[%clk 0:00:02.7]} 41... Ke4 {[%clk 0:00:04.9]} 42. Kg1 {[%clk 0:00:02]} 42...
Kxe3 {[%clk 0:00:04.9]} 43. Rxf5 {[%clk 0:00:02.4]} 43... Rc1+ {[%clk
0:00:05.1]} 44. Kh2 {[%clk 0:00:02.8]} 44... f2 {[%clk 0:00:05.8]} 45. Kg2
{[%clk 0:00:02.4]} 45... Rg1+ {[%clk 0:00:06]} 46. Kh2 {[%clk 0:00:03]} 46...
f1=Q {[%clk 0:00:06.9]} 47. Rxf1 {[%clk 0:00:03.1]} 47... Rxf1 {[%clk
0:00:07.8]} 0-1

[Event "Early-Titled-Tuesday-Blitz-May-07-2024"]
[Site "Chess.com"]
[Date "2024.05.07"]
[Round "9"]
[White "xasid81"]
[Black "Legendinunknown"]
[Result "0-1"]
[WhiteElo "2652"]
[BlackElo "2831"]
[TimeControl "180+1"]
[EndTime "9:52:58 PDT"]
[Termination "Legendinunknown won by resignation"]

1. Nf3 {[%clk 0:02:59.8]} 1... Nf6 {[%clk 0:02:55]} 2. d4 {[%clk 0:03:00.3]}
2... e6 {[%clk 0:02:48.5]} 3. g3 {[%clk 0:02:58.9]} 3... c5 {[%clk 0:02:47.8]}
4. Bg2 {[%clk 0:02:59.5]} 4... Nc6 {[%clk 0:02:47.3]} 5. O-O {[%clk 0:02:59.7]}
5... Be7 {[%clk 0:02:47.4]} 6. c4 {[%clk 0:02:59.5]} 6... cxd4 {[%clk
0:02:45.2]} 7. Nxd4 {[%clk 0:03:00.4]} 7... O-O {[%clk 0:02:45.4]} 8. Nc3 {[%clk
0:03:00.1]} 8... a6 {[%clk 0:02:45]} 9. b3 {[%clk 0:02:59.3]} 9... Qc7 {[%clk
0:02:44.8]} 10. Bb2 {[%clk 0:02:58.3]} 10... b6 {[%clk 0:02:44.1]} 11. Nxc6
{[%clk 0:02:57.1]} 11... dxc6 {[%clk 0:02:43.8]} 12. Qc2 {[%clk 0:02:57.8]}
12... Bb7 {[%clk 0:02:43.4]} 13. Rad1 {[%clk 0:02:57.9]} 13... c5 {[%clk
0:02:42.5]} 14. Bxb7 {[%clk 0:02:56.4]} 14... Qxb7 {[%clk 0:02:43.1]} 15. Rd2
{[%clk 0:02:57.1]} 15... Rad8 {[%clk 0:02:43]} 16. Rfd1 {[%clk 0:02:57.8]} 16...
Rxd2 {[%clk 0:02:41.2]} 17. Qxd2 {[%clk 0:02:58.7]} 17... h6 {[%clk 0:02:38.4]}
18. Qc2 {[%clk 0:02:58.2]} 18... Rd8 {[%clk 0:02:35.1]} 19. Rxd8+ {[%clk
0:02:56.3]} 19... Bxd8 {[%clk 0:02:35.6]} 20. Qd3 {[%clk 0:02:55.9]} 20... Be7
{[%clk 0:02:35.7]} 21. f3 {[%clk 0:02:54.6]} 21... Kf8 {[%clk 0:02:33.6]} 22. e4
{[%clk 0:02:54.2]} 22... Ke8 {[%clk 0:02:32.3]} 23. e5 {[%clk 0:02:51.4]} 23...
Nd7 {[%clk 0:02:32.3]} 24. Ne4 {[%clk 0:02:50.6]} 24... Qc6 {[%clk 0:02:25.3]}
25. a4 {[%clk 0:02:49]} 25... Kd8 {[%clk 0:02:20.6]} 26. Kf2 {[%clk 0:02:45.5]}
26... Kc7 {[%clk 0:02:20.6]} 27. f4 {[%clk 0:02:44.5]} 27... Nb8 {[%clk
0:02:15.6]} 28. Nd6 {[%clk 0:02:40.9]} 28... f5 {[%clk 0:02:08.8]} 29. exf6
{[%clk 0:02:25.1]} 29... gxf6 {[%clk 0:02:08.3]} 30. Ne4 {[%clk 0:02:19.1]}
30... Nd7 {[%clk 0:02:07.1]} 31. g4 {[%clk 0:02:11]} 31... f5 {[%clk 0:00:56.5]}
32. gxf5 {[%clk 0:02:11.9]} 32... Bh4+ {[%clk 0:00:56.4]} 33. Ke2 {[%clk
0:01:44.5]} 33... exf5 {[%clk 0:00:53.8]} 34. Nd2 {[%clk 0:01:23.7]} 34... Qg2+
{[%clk 0:00:52.3]} 35. Kd1 {[%clk 0:01:24.2]} 35... Qg1+ {[%clk 0:00:30.4]} 36.
Nf1 {[%clk 0:01:15.2]} 36... Bf6 {[%clk 0:00:24.6]} 37. Bc1 {[%clk 0:01:04]}
37... Bd4 {[%clk 0:00:22]} 38. Kc2 {[%clk 0:00:45.5]} 38... Nf6 {[%clk
0:00:20.6]} 39. Nd2 {[%clk 0:00:41.3]} 39... Qg6 {[%clk 0:00:20.1]} 40. Nf3
{[%clk 0:00:36]} 40... Qg2+ {[%clk 0:00:19.3]} 41. Bd2 {[%clk 0:00:33.7]} 41...
Ba1 {[%clk 0:00:10.6]} 42. Kb1 {[%clk 0:00:32.6]} 42... Qh1+ {[%clk 0:00:10]}
43. Ka2 {[%clk 0:00:29.8]} 43... Ne4 {[%clk 0:00:09.9]} 44. a5 {[%clk
0:00:21.6]} 44... Bf6 {[%clk 0:00:09.5]} 45. axb6+ {[%clk 0:00:21.3]} 45... Kxb6
{[%clk 0:00:10]} 46. Be1 {[%clk 0:00:20.6]} 46... Qg2+ {[%clk 0:00:10.1]} 47.
Bd2 {[%clk 0:00:16.4]} 47... Kc7 {[%clk 0:00:10.2]} 48. Kb1 {[%clk 0:00:15.2]}
48... Qh1+ {[%clk 0:00:10.4]} 49. Kc2 {[%clk 0:00:14.4]} 49... Qa1 {[%clk
0:00:10.1]} 50. Ne5 {[%clk 0:00:13.2]} 50... Qa2+ {[%clk 0:00:10.3]} 51. Kd1
{[%clk 0:00:13.2]} 51... Nf2+ {[%clk 0:00:10.2]} 0-1

[Event "Early-Titled-Tuesday-Blitz-May-07-2024"]
[Site "Chess.com"]
[Date "2024.05.07"]
[Round "9"]
[White "kanzaww"]
[Black "Supergiuly"]
[Result "1-0"]
[WhiteElo "2507"]
[BlackElo "2341"]
[TimeControl "180+1"]
[EndTime "9:53:01 PDT"]
[Termination "kanzaww won by checkmate"]

1. e4 {[%clk 0:02:58.7]} 1... b6 {[%clk 0:02:57.2]} 2. d4 {[%clk 0:02:56.9]}
2... g6 {[%clk 0:02:39.7]} 3. Nc3 {[%clk 0:02:56.3]} 3... Bg7 {[%clk 0:02:40.3]}
4. h3 {[%clk 0:02:53.2]} 4... Bb7 {[%clk 0:02:40.5]} 5. g4 {[%clk 0:02:50.9]}
5... Nf6 {[%clk 0:02:38.2]} 6. Bg2 {[%clk 0:02:51.3]} 6... h5 {[%clk 0:02:38.2]}
7. g5 {[%clk 0:02:50.6]} 7... Nh7 {[%clk 0:02:38.5]} 8. Be3 {[%clk 0:02:39.8]}
8... e5 {[%clk 0:02:36.3]} 9. Nf3 {[%clk 0:02:27.1]} 9... exd4 {[%clk
0:02:28.2]} 10. Bxd4 {[%clk 0:02:26.6]} 10... O-O {[%clk 0:02:26.3]} 11. Bxg7
{[%clk 0:02:26.3]} 11... Kxg7 {[%clk 0:02:27.2]} 12. Qd4+ {[%clk 0:02:25.6]}
12... Kg8 {[%clk 0:02:27]} 13. O-O-O {[%clk 0:02:23.7]} 13... d6 {[%clk
0:02:25.3]} 14. h4 {[%clk 0:02:21.5]} 14... Nc6 {[%clk 0:02:24.8]} 15. Qd2
{[%clk 0:02:19]} 15... Ne5 {[%clk 0:02:22.2]} 16. Rhe1 {[%clk 0:02:09.2]} 16...
f6 {[%clk 0:02:19.4]} 17. Nxe5 {[%clk 0:02:00.8]} 17... fxe5 {[%clk 0:02:16.2]}
18. Nd5 {[%clk 0:01:56.8]} 18... Qd7 {[%clk 0:02:09.7]} 19. Qe3 {[%clk
0:01:53.1]} 19... Bxd5 {[%clk 0:02:05.9]} 20. exd5 {[%clk 0:01:51]} 20... Rf4
{[%clk 0:02:05.8]} 21. Be4 {[%clk 0:01:49.6]} 21... Qf7 {[%clk 0:02:04.7]} 22.
f3 {[%clk 0:01:45.6]} 22... Nf8 {[%clk 0:02:00.9]} 23. Rh1 {[%clk 0:01:42.8]}
23... Nd7 {[%clk 0:02:00.9]} 24. b4 {[%clk 0:01:37.3]} 24... a5 {[%clk 0:02:00]}
25. a3 {[%clk 0:01:37.4]} 25... axb4 {[%clk 0:02:00.1]} 26. axb4 {[%clk
0:01:38.3]} 26... Nb8 {[%clk 0:01:44.7]} 27. Qc3 {[%clk 0:01:36.3]} 27... Na6
{[%clk 0:01:41.4]} 28. Kb2 {[%clk 0:01:36.4]} 28... Qd7 {[%clk 0:01:36.5]} 29.
Ra1 {[%clk 0:01:24.9]} 29... Kg7 {[%clk 0:01:34.4]} 30. Qc4 {[%clk 0:01:20.5]}
30... b5 {[%clk 0:01:30.2]} 31. Qb3 {[%clk 0:01:16.9]} 31... Qc8 {[%clk
0:01:24.3]} 32. Ra5 {[%clk 0:01:15]} 32... Qb7 {[%clk 0:01:16.5]} 33. Rha1
{[%clk 0:01:14.4]} 33... Qb6 {[%clk 0:00:41.5]} 34. Qc3 {[%clk 0:01:00]} 34...
Rxh4 {[%clk 0:00:14]} 35. Kb3 {[%clk 0:00:45.9]} 35... Rh2 {[%clk 0:00:11.9]}
36. Kb2 {[%clk 0:00:40.2]} 36... Re2 {[%clk 0:00:10.5]} 37. Rxa6 {[%clk
0:00:33.2]} 37... Rxa6 {[%clk 0:00:09.7]} 38. Rxa6 {[%clk 0:00:33.8]} 38... Qxa6
{[%clk 0:00:10.6]} 39. Qxc7+ {[%clk 0:00:34]} 39... Kf8 {[%clk 0:00:07]} 40.
Qd8+ {[%clk 0:00:34]} 40... Kf7 {[%clk 0:00:06.6]} 41. Qd7+ {[%clk 0:00:33.7]}
41... Kf8 {[%clk 0:00:06.6]} 42. Bxg6 {[%clk 0:00:32.7]} 42... Rxc2+ {[%clk
0:00:03.9]} 43. Bxc2 {[%clk 0:00:32.2]} 43... Qb6 {[%clk 0:00:04]} 44. Qf5+
{[%clk 0:00:29.3]} 44... Ke7 {[%clk 0:00:03.6]} 45. Qe4 {[%clk 0:00:28.5]} 45...
Qf2 {[%clk 0:00:02.6]} 46. g6 {[%clk 0:00:28.4]} 46... Kf8 {[%clk 0:00:02.9]}
47. Qf5+ {[%clk 0:00:27.8]} 47... Kg7 {[%clk 0:00:02.5]} 48. Qf7+ {[%clk
0:00:17.4]} 48... Kh6 {[%clk 0:00:03.1]} 49. g7 {[%clk 0:00:17.8]} 49... Qd4+
{[%clk 0:00:03.2]} 50. Kc1 {[%clk 0:00:11.7]} 50... Qe3+ {[%clk 0:00:03.4]} 51.
Kd1 {[%clk 0:00:11.6]} 51... Qd4+ {[%clk 0:00:03.5]} 52. Ke2 {[%clk 0:00:12]}
52... Qc4+ {[%clk 0:00:03.4]} 53. Bd3 {[%clk 0:00:12.3]} 53... Qa2+ {[%clk
0:00:03.6]} 54. Ke3 {[%clk 0:00:13]} 54... Qb2 {[%clk 0:00:00.7]} 55. Qf6#
{[%clk 0:00:12.5]} 1-0

[Event "Early-Titled-Tuesday-Blitz-May-07-2024"]
[Site "Chess.com"]
[Date "2024.05.07"]
[Round "9"]
[White "ChessQueen"]
[Black "BM223344"]
[Result "1-0"]
[WhiteElo "2804"]
[BlackElo "2624"]
[TimeControl "180+1"]
[EndTime "9:53:02 PDT"]
[Termination "ChessQueen won by resignation"]

1. e4 {[%clk 0:03:00.9]} 1... e6 {[%clk 0:02:59.2]} 2. d4 {[%clk 0:03:00.5]}
2... d5 {[%clk 0:02:59.9]} 3. exd5 {[%clk 0:03:00.2]} 3... exd5 {[%clk
0:03:00.2]} 4. Nf3 {[%clk 0:03:00.9]} 4... Nf6 {[%clk 0:03:01]} 5. Bd3 {[%clk
0:03:00.6]} 5... Bd6 {[%clk 0:03:01.5]} 6. O-O {[%clk 0:03:01]} 6... O-O {[%clk
0:03:02.1]} 7. Bg5 {[%clk 0:03:01.2]} 7... h6 {[%clk 0:03:02.7]} 8. Bh4 {[%clk
0:03:01.1]} 8... Bg4 {[%clk 0:03:03.1]} 9. Nbd2 {[%clk 0:03:00.7]} 9... c6
{[%clk 0:03:03.5]} 10. c4 {[%clk 0:03:00.5]} 10... Nbd7 {[%clk 0:03:02.5]} 11.
c5 {[%clk 0:03:00.2]} 11... Bc7 {[%clk 0:03:02.9]} 12. Re1 {[%clk 0:02:55.6]}
12... Re8 {[%clk 0:03:03.3]} 13. Qc2 {[%clk 0:02:51.5]} 13... Bf4 {[%clk
0:02:54.5]} 14. b4 {[%clk 0:02:45.5]} 14... Qc7 {[%clk 0:02:50.9]} 15. a4 {[%clk
0:02:39.1]} 15... b6 {[%clk 0:02:35.1]} 16. cxb6 {[%clk 0:02:36.5]} 16... axb6
{[%clk 0:02:35.4]} 17. Bg3 {[%clk 0:02:29.8]} 17... Bxg3 {[%clk 0:02:32.9]} 18.
hxg3 {[%clk 0:02:30.7]} 18... Bxf3 {[%clk 0:02:24.4]} 19. gxf3 {[%clk
0:02:25.5]} 19... c5 {[%clk 0:02:24.9]} 20. bxc5 {[%clk 0:02:19.8]} 20... bxc5
{[%clk 0:02:25.2]} 21. Bb5 {[%clk 0:02:19.8]} 21... c4 {[%clk 0:02:20.2]} 22.
Kg2 {[%clk 0:02:16.5]} 22... Rxe1 {[%clk 0:02:17.1]} 23. Rxe1 {[%clk 0:02:15.9]}
23... Nf8 {[%clk 0:02:17.7]} 24. f4 {[%clk 0:02:03.5]} 24... Ne6 {[%clk
0:02:18]} 25. Nf3 {[%clk 0:02:03.5]} 25... Qb6 {[%clk 0:02:14.5]} 26. Qc3 {[%clk
0:01:36.1]} 26... Ne4 {[%clk 0:02:14.5]} 27. Qe3 {[%clk 0:01:35.6]} 27... Rc8
{[%clk 0:02:05.3]} 28. f5 {[%clk 0:01:32.5]} 28... Nc7 {[%clk 0:02:01.2]} 29.
Bxc4 {[%clk 0:01:29.5]} 29... dxc4 {[%clk 0:01:54.2]} 30. Qxe4 {[%clk
0:01:29.8]} 30... c3 {[%clk 0:01:54.8]} 31. Rc1 {[%clk 0:01:27.2]} 31... Qa5
{[%clk 0:01:50.7]} 32. Qc6 {[%clk 0:01:24.4]} 32... Rd8 {[%clk 0:01:33.5]} 33.
Rxc3 {[%clk 0:01:22.5]} 33... Ne8 {[%clk 0:01:33.9]} 34. Re3 {[%clk 0:01:11]}
34... Nf6 {[%clk 0:01:31.7]} 35. Qb5 {[%clk 0:01:07.9]} 35... Qa8 {[%clk
0:01:23.8]} 36. Rb3 {[%clk 0:01:02.3]} 36... Qe4 {[%clk 0:01:18]} 37. Qd3 {[%clk
0:01:01.2]} 37... Qa8 {[%clk 0:01:12.2]} 38. Qb5 {[%clk 0:01:00.5]} 38... Qe4
{[%clk 0:01:11.8]} 39. Qe5 {[%clk 0:00:59.2]} 39... Qa8 {[%clk 0:01:10.3]} 40.
a5 {[%clk 0:00:58.2]} 40... Ng4 {[%clk 0:01:10.6]} 41. Qf4 {[%clk 0:00:55.4]}
41... Nf6 {[%clk 0:01:10.9]} 42. Qc7 {[%clk 0:00:51.1]} 42... Re8 {[%clk
0:00:58.1]} 43. Rb5 {[%clk 0:00:43.3]} 43... Ne4 {[%clk 0:00:43.7]} 44. Qb7
{[%clk 0:00:34.3]} 44... Qd8 {[%clk 0:00:43.5]} 45. Ne5 {[%clk 0:00:32.7]} 45...
Nd6 {[%clk 0:00:43.6]} 46. Qd5 {[%clk 0:00:27.4]} 46... Nxb5 {[%clk 0:00:38.2]}
47. Qxf7+ {[%clk 0:00:27.2]} 47... Kh7 {[%clk 0:00:26.1]} 48. Qg6+ {[%clk
0:00:26.3]} 48... Kg8 {[%clk 0:00:25.9]} 49. Qf7+ {[%clk 0:00:26.3]} 49... Kh7
{[%clk 0:00:23.4]} 50. f6 {[%clk 0:00:26.7]} 50... Qxf6 {[%clk 0:00:08.7]} 51.
Qxe8 {[%clk 0:00:26.8]} 51... Nxd4 {[%clk 0:00:09.2]} 52. Nf7 {[%clk 0:00:26.9]}
52... Qf3+ {[%clk 0:00:08.3]} 53. Kg1 {[%clk 0:00:26.5]} 53... Qxf2+ {[%clk
0:00:08]} 54. Kxf2 {[%clk 0:00:26.4]} 54... Kg6 {[%clk 0:00:07.5]} 55. Nd6+
{[%clk 0:00:25.7]} 55... Kf6 {[%clk 0:00:06.5]} 56. Ne4+ {[%clk 0:00:24.4]}
56... Kf5 {[%clk 0:00:06.5]} 57. a6 {[%clk 0:00:24.5]} 57... Ne6 {[%clk
0:00:07.4]} 58. Qxe6+ {[%clk 0:00:24.2]} 58... Kxe6 {[%clk 0:00:07.5]} 59. a7
{[%clk 0:00:24.8]} 59... Ke5 {[%clk 0:00:08.4]} 60. a8=Q {[%clk 0:00:25.1]}
60... Kf5 {[%clk 0:00:09.3]} 61. Qd5+ {[%clk 0:00:24.6]} 61... Kg4 {[%clk
0:00:09.8]} 62. Qe5 {[%clk 0:00:24]} 62... g5 {[%clk 0:00:10.1]} 63. Qe6+ {[%clk
0:00:24]} 63... Kh5 {[%clk 0:00:10.8]} 64. Qh3+ {[%clk 0:00:24.1]} 64... Kg6
{[%clk 0:00:11.3]} 65. g4 {[%clk 0:00:24.7]} 65... Kg7 {[%clk 0:00:11.2]} 66.
Qh5 {[%clk 0:00:24.7]} 66... Kg8 {[%clk 0:00:10.9]} 67. Qg6+ {[%clk 0:00:24.3]}
1-0

[Event "Early-Titled-Tuesday-Blitz-May-07-2024"]
[Site "Chess.com"]
[Date "2024.05.07"]
[Round "9"]
[White "Mikhail_Golubev"]
[Black "Kotofeyca"]
[Result "0-1"]
[WhiteElo "2604"]
[BlackElo "2519"]
[TimeControl "180+1"]
[EndTime "9:53:02 PDT"]
[Termination "Kotofeyca won on time"]

1. e4 {[%clk 0:03:00.9]} 1... c5 {[%clk 0:03:00.1]} 2. Nf3 {[%clk 0:03:01]} 2...
d6 {[%clk 0:03:00.6]} 3. d4 {[%clk 0:03:01.1]} 3... cxd4 {[%clk 0:03:01.5]} 4.
Nxd4 {[%clk 0:03:01.2]} 4... Nf6 {[%clk 0:03:02.1]} 5. Nc3 {[%clk 0:03:01.4]}
5... a6 {[%clk 0:03:02.7]} 6. Bc4 {[%clk 0:03:01.6]} 6... e6 {[%clk 0:03:02.7]}
7. Bb3 {[%clk 0:03:02.1]} 7... Be7 {[%clk 0:03:02.2]} 8. f4 {[%clk 0:02:57.7]}
8... O-O {[%clk 0:03:00.7]} 9. Be3 {[%clk 0:02:57.5]} 9... Qc7 {[%clk
0:02:56.6]} 10. f5 {[%clk 0:02:42.5]} 10... e5 {[%clk 0:02:48.9]} 11. Nf3 {[%clk
0:02:34]} 11... b5 {[%clk 0:02:42.9]} 12. g4 {[%clk 0:02:10.6]} 12... Bb7 {[%clk
0:02:39.1]} 13. g5 {[%clk 0:01:48.6]} 13... Nxe4 {[%clk 0:02:37.8]} 14. Nxe4
{[%clk 0:01:34.4]} 14... Bxe4 {[%clk 0:02:38.7]} 15. f6 {[%clk 0:01:32]} 15...
gxf6 {[%clk 0:02:11.3]} 16. gxf6 {[%clk 0:01:32.9]} 16... Bxf6 {[%clk
0:02:10.8]} 17. Bd5 {[%clk 0:01:15.5]} 17... Bxd5 {[%clk 0:01:51.7]} 18. Qxd5
{[%clk 0:01:16.4]} 18... Qc6 {[%clk 0:01:48.8]} 19. Rg1+ {[%clk 0:01:01.8]}
19... Kh8 {[%clk 0:01:43.8]} 20. O-O-O {[%clk 0:00:58.2]} 20... Qxd5 {[%clk
0:01:36.5]} 21. Rxd5 {[%clk 0:00:59.1]} 21... Be7 {[%clk 0:01:19.5]} 22. Bh6
{[%clk 0:00:10.5]} 22... Rg8 {[%clk 0:01:01.7]} 23. Ng5 {[%clk 0:00:10.5]} 23...
Bxg5+ {[%clk 0:00:20]} 24. Rxg5 {[%clk 0:00:11.4]} 24... Rg6 {[%clk 0:00:16.3]}
25. Rxg6 {[%clk 0:00:05.8]} 25... hxg6 {[%clk 0:00:17.2]} 26. Rxd6 {[%clk
0:00:06.2]} 26... Kh7 {[%clk 0:00:17.6]} 27. Bg5 {[%clk 0:00:06]} 27... Ra7
{[%clk 0:00:17.9]} 28. Bf6 {[%clk 0:00:05.8]} 28... Nd7 {[%clk 0:00:16.9]} 29.
Bd8 {[%clk 0:00:04.6]} 29... Kg7 {[%clk 0:00:15.7]} 30. Kd2 {[%clk 0:00:04.7]}
30... f5 {[%clk 0:00:14.6]} 31. h4 {[%clk 0:00:04.8]} 31... Kf7 {[%clk
0:00:14.3]} 32. Bg5 {[%clk 0:00:04.8]} 32... Nc5 {[%clk 0:00:12.8]} 33. Rf6+
{[%clk 0:00:02.9]} 33... Kg7 {[%clk 0:00:11.9]} 34. Ke2 {[%clk 0:00:02.9]} 34...
Ne4 {[%clk 0:00:12.3]} 35. Re6 {[%clk 0:00:03.1]} 35... Nxg5 {[%clk 0:00:12.3]}
36. hxg5 {[%clk 0:00:03.6]} 36... e4 {[%clk 0:00:12.9]} 37. Ke3 {[%clk 0:00:04]}
37... Rc7 {[%clk 0:00:12.3]} 38. c3 {[%clk 0:00:04.3]} 38... a5 {[%clk
0:00:12.7]} 39. Kf4 {[%clk 0:00:04.5]} 39... b4 {[%clk 0:00:12.6]} 40. cxb4
{[%clk 0:00:04.7]} 40... axb4 {[%clk 0:00:13.5]} 41. Rb6 {[%clk 0:00:04.6]}
41... Ra7 {[%clk 0:00:12.8]} 42. Rxb4 {[%clk 0:00:04.4]} 42... Rxa2 {[%clk
0:00:12.8]} 43. Rb7+ {[%clk 0:00:04.6]} 43... Kf8 {[%clk 0:00:13.1]} 44. Ke5
{[%clk 0:00:04.7]} 44... Ra6 {[%clk 0:00:12.4]} 45. Kf4 {[%clk 0:00:04.2]} 45...
Re6 {[%clk 0:00:11.9]} 46. Rb8+ {[%clk 0:00:04.4]} 46... Ke7 {[%clk 0:00:12]}
47. Rb7+ {[%clk 0:00:03.8]} 47... Kd6 {[%clk 0:00:12.2]} 48. Rb6+ {[%clk
0:00:03.5]} 48... Kd5 {[%clk 0:00:12.2]} 49. Rb5+ {[%clk 0:00:03.3]} 49... Kc4
{[%clk 0:00:12.3]} 50. Rb8 {[%clk 0:00:03.2]} 50... e3 {[%clk 0:00:12.3]} 51.
Rc8+ {[%clk 0:00:02.4]} 51... Kb3 {[%clk 0:00:12.2]} 52. Rc1 {[%clk 0:00:02.4]}
52... e2 {[%clk 0:00:12]} 53. Re1 {[%clk 0:00:02.5]} 53... Kxb2 {[%clk
0:00:12.5]} 0-1